[Event "European Online Club-ch-F 2021"]
[Site "Online"]
[Date "2021.03.27"]
[Round "8.2"]
[White "Katkov, Michelle"]
[Black "Prieur, Eetu"]
[Result "1-0"]
[ECO "C54"]
[WhiteElo "2078"]
[BlackElo "2172"]
[Annotator "NA"]
[PlyCount "67"]
[EventDate "2021.03.27"]
[EventType "team-tourn"]
[EventCountry "NET"]
[SourceTitle "playchess.com"]
[Source "ChessBase"]
[SourceQuality "1"]
[TimeControl "900+5"]

1. e4 {[%emt 0:00:00]} e5 {[%emt 0:00:04]} 2. Nf3 {[%emt 0:00:03]} Nc6 {[%emt 0:00:06]} 3. Bc4 {[%emt 0:00:03]} Nf6 {[%emt 0:00:05]} 4. d3 {[%emt 0:00:01]} Bc5 {[%emt 0:00:04]} 5. c3 {[%emt 0:00:03]} d6 {[%emt 0:00:20]} 6. Nbd2 {[%emt 0:00:04]} O-O {[%emt 0:00:44]} 7. O-O {[%emt 0:00:10]} Bg4 {[%emt 0:00:08]} 8. h3 {[%emt 0:00:05]} Bh5 {[%emt 0:00:13]} 9. Re1 {[%emt 0:00:10]} h6 {[%emt 0:01:12]} 10. Bb3 {[%emt 0:00:56]} Re8 {[%emt 0:00:10]} 11. Nf1 {[%emt 0:00:09]} d5 {[%emt 0:00:09]} 12. Qe2 {[%emt 0:00:21]} dxe4 {[%emt 0:00:19]} 13. dxe4 {[%emt 0:00:05]} Qe7 {[%emt 0:00:03]} 14. Ng3 {[%emt 0:00:24]} Bg6 {[%emt 0:00:05]} 15. Nh4 {[%emt 0:00:23]} Kh7 {[%emt 0:00:52]} 16. Ngf5 {[%emt 0:00:36]} Qf8 {[%emt 0:00:04]} 17. Qf3 {[%emt 0:00:52]} Ng8 {[%emt 0:00:46]} 18. Be3 {[%emt 0:01:52]} Na5 {[%emt 0:00:49]} 19. Ba4 {[%emt 0:02:04]} Red8 {[%emt 0:01:23]} 20. Bxc5 {[%emt 0:00:16]} Qxc5 {[%emt 0:00:05]} 21. b4 {[%emt 0:00:01]} Qc4 {[%emt 0:00:18]} 22. Bc2 {[%emt 0:00:36]} Nc6 {[%emt 0:00:18]} 23. Bb3 {[%emt 0:02:50]} Qd3 {[%emt 0:00:08]} 24. Re3 {[%emt 0:00:09]} Qd2 {[%emt 0:02:56]} 25. Rd1 {[%emt 0:00:19]} Qb2 {[%emt 0:00:07]} 26. Bd5 {[%emt 0:00:27]} Rab8 {[%emt 0:00:28]} 27. Red3 {[%emt 0:01:54]} Nge7 {[%emt 0:02:58]} 28. Qg4 {[%emt 0:00:50]} Qc2 {[%emt 0:00:31]} 29. R1d2 {[%emt 0:00:24]} Qc1+ {[%emt 0:00:05]} 30. Kh2 {[%emt 0:00:07]} a6 {[%emt 0:00:14]} 31. Bxf7 {[%emt 0:00:04]} Nxf5 {[%emt 0:00:59]} 32. Qxg6+ {[%emt 0:00:06]} Kh8 {[%emt 0:00:04]} 33. Nxf5 {[%emt 0:00:06]} Rxd3 {[%emt 0:00:10]} 34. Qxg7# {[%emt 0:00:03]} 1-0

[Event "European Online Club-ch-F 2021"]
[Site "Online"]
[Date "2021.03.27"]
[Round "8.3"]
[White "Graeffe, Petri"]
[Black "Stolyarsky, Yegor"]
[Result "1/2-1/2"]
[ECO "E61"]
[WhiteElo "2043"]
[BlackElo "2063"]
[Annotator "NA"]
[PlyCount "119"]
[EventDate "2021.03.27"]
[EventType "team-tourn"]
[EventCountry "NET"]
[SourceTitle "playchess.com"]
[Source "ChessBase"]
[SourceQuality "1"]
[TimeControl "900+5"]

1. Nf3 {[%emt 0:00:00]} Nf6 {[%emt 0:00:02]} 2. e3 {[%emt 0:00:13]} g6 {[%emt 0:00:02]} 3. c4 {[%emt 0:00:03]} Bg7 {[%emt 0:00:01]} 4. d4 {[%emt 0:00:04]} d6 {[%emt 0:00:01]} 5. Nc3 {[%emt 0:00:06]} O-O {[%emt 0:00:05]} 6. Be2 {[%emt 0:00:13]} c6 {[%emt 0:00:09]} 7. O-O {[%emt 0:00:07]} Bf5 {[%emt 0:00:04]} 8. Nd2 {[%emt 0:01:24]} e5 {[%emt 0:00:08]} 9. d5 {[%emt 0:00:50]} Na6 {[%emt 0:00:12]} 10. e4 {[%emt 0:00:12]} Bd7 {[%emt 0:00:03]} 11. Rb1 {[%emt 0:00:39]} Ne8 {[%emt 0:00:08]} 12. b4 {[%emt 0:00:54]} f5 {[%emt 0:00:04]} 13. f3 {[%emt 0:00:07]} f4 {[%emt 0:00:06]} 14. dxc6 {[%emt 0:00:46]} bxc6 {[%emt 0:00:05]} 15. c5 {[%emt 0:00:02]} Nac7 {[%emt 0:00:08]} 16. cxd6 {[%emt 0:00:54]} Ne6 {[%emt 0:00:05]} 17. b5 {[%emt 0:01:54]} Nd4 {[%emt 0:00:26]} 18. Nb3 {[%emt 0:00:58]} Nxd6 {[%emt 0:01:32]} 19. Ba3 {[%emt 0:00:48]} Be6 {[%emt 0:01:21]} 20. bxc6 {[%emt 0:00:16]} Bxb3 {[%emt 0:00:48]} 21. axb3 {[%emt 0:00:04]} Rf6 {[%emt 0:00:59]} 22. Nd5 {[%emt 0:00:10]} Re6 {[%emt 0:00:45]} 23. c7 {[%emt 0:00:54]} Qe8 {[%emt 0:00:42]} 24. Bxd6 {[%emt 0:01:26]} Rxd6 {[%emt 0:00:07]} 25. Bc4 {[%emt 0:00:06]} Kh8 {[%emt 0:00:12]} 26. Qd3 {[%emt 0:00:39]} a6 {[%emt 0:00:36]} 27. Ra1 {[%emt 0:00:10]} Ne6 {[%emt 0:00:08]} 28. Ra5 {[%emt 0:00:18]} Qc6 {[%emt 0:00:33]} 29. Rfa1 {[%emt 0:00:44]} Nxc7 {[%emt 0:00:20]} 30. Qe2 {[%emt 0:00:03]} Nxd5 {[%emt 0:00:08]} 31. Bxd5 {[%emt 0:00:03]} Qb6+ {[%emt 0:00:01]} 32. Qf2 {[%emt 0:00:08]} Ra7 {[%emt 0:00:35]} 33. Qxb6 {[%emt 0:00:07]} Rxb6 {[%emt 0:00:00]} 34. Kf2 {[%emt 0:00:03]} Bf8 {[%emt 0:00:09]} 35. Bc4 {[%emt 0:00:05]} Bd6 {[%emt 0:00:26]} 36. Rxa6 {[%emt 0:00:03]} Raxa6 {[%emt 0:00:03]} 37. Rxa6 {[%emt 0:00:02]} Rxa6 {[%emt 0:00:02]} 38. Bxa6 {[%emt 0:00:01]} Kg7 {[%emt 0:00:03]} 39. Ke2 {[%emt 0:00:02]} Kf6 {[%emt 0:00:48]} 40. Kd3 {[%emt 0:00:02]} g5 {[%emt 0:00:07]} 41. Kc4 {[%emt 0:00:02]} h5 {[%emt 0:00:03]} 42. Kd5 {[%emt 0:00:01]} Be7 {[%emt 0:00:18]} 43. Be2 {[%emt 0:00:04]} Bf8 {[%emt 0:00:10]} 44. Kc4 {[%emt 0:00:04]} Ke6 {[%emt 0:00:07]} 45. b4 {[%emt 0:00:01]} Kd6 {[%emt 0:00:03]} 46. Bd1 {[%emt 0:00:05]} Be7 {[%emt 0:00:07]} 47. h3 {[%emt 0:00:19]} Bd8 {[%emt 0:00:04]} 48. Kb5 {[%emt 0:00:09]} Bc7 {[%emt 0:00:13]} 49. Bb3 {[%emt 0:00:14]} Bb8 {[%emt 0:00:55]} 50. Bf7 {[%emt 0:00:13]} h4 {[%emt 0:00:05]} 51. Bd5 {[%emt 0:00:02]} Bc7 {[%emt 0:00:14]} 52. Ka6 {[%emt 0:00:09]} Bd8 {[%emt 0:00:17]} 53. Kb7 {[%emt 0:00:05]} Bc7 {[%emt 0:00:08]} 54. b5 {[%emt 0:00:05]} Bd8 {[%emt 0:00:05]} 55. b6 {[%emt 0:00:46]} Kc5 {[%emt 0:00:08]} 56. Kc8 {[%emt 0:00:01]} Bxb6 {[%emt 0:00:01]} 57. Kd7 {[%emt 0:00:01]} Kd4 {[%emt 0:00:03]} 58. Ke6 {[%emt 0:00:02]} Ba5 {[%emt 0:00:46]} 59. Kf5 {[%emt 0:00:29]} Bd8 {[%emt 0:00:06]} 60. Ba8 {[%emt 0:00:03]} 1/2-1/2

[Event "European Online Club-ch-F 2021"]
[Site "Online"]
[Date "2021.03.27"]
[Round "8.4"]
[White "Gleizer, Adar"]
[Black "Kivilahti, Rami"]
[Result "1-0"]
[ECO "B13"]
[WhiteElo "1833"]
[BlackElo "1962"]
[Annotator "NA"]
[PlyCount "67"]
[EventDate "2021.03.27"]
[EventType "team-tourn"]
[EventCountry "NET"]
[SourceTitle "playchess.com"]
[Source "ChessBase"]
[SourceQuality "1"]
[TimeControl "900+5"]

1. e4 {[%emt 0:00:00]} c6 {[%emt 0:00:04]} 2. d4 {[%emt 0:00:03]} d5 {[%emt 0:00:08]} 3. exd5 {[%emt 0:00:02]} cxd5 {[%emt 0:00:03]} 4. Bd3 {[%emt 0:00:02]} Nf6 {[%emt 0:00:03]} 5. c3 {[%emt 0:00:09]} Bg4 {[%emt 0:00:13]} 6. Qb3 {[%emt 0:00:03]} Qb6 {[%emt 0:00:13]} 7. Qxb6 {[%emt 0:00:10]} axb6 {[%emt 0:00:00]} 8. Na3 {[%emt 0:00:02]} Bd7 {[%emt 0:00:29]} 9. Nb5 {[%emt 0:00:22]} Na6 {[%emt 0:00:20]} 10. Bf4 {[%emt 0:00:12]} Bxb5 {[%emt 0:01:35]} 11. Bxb5+ {[%emt 0:00:02]} Nd7 {[%emt 0:00:01]} 12. Nf3 {[%emt 0:00:16]} f6 {[%emt 0:00:03]} 13. O-O {[%emt 0:00:17]} h5 {[%emt 0:00:11]} 14. h4 {[%emt 0:00:03]} O-O-O {[%emt 0:00:19]} 15. Rfe1 {[%emt 0:00:13]} Nc7 {[%emt 0:00:37]} 16. Bd3 {[%emt 0:01:36]} b5 {[%emt 0:01:57]} 17. a4 {[%emt 0:01:30]} bxa4 {[%emt 0:02:34]} 18. Rxa4 {[%emt 0:00:18]} Nb6 {[%emt 0:00:04]} 19. Ra5 {[%emt 0:01:09]} Nc4 {[%emt 0:01:47]} 20. Bxc7 {[%emt 0:02:29]} Kxc7 {[%emt 0:00:10]} 21. Rc5+ {[%emt 0:00:04]} Kb8 {[%emt 0:01:58]} 22. Bxc4 {[%emt 0:00:46]} dxc4 {[%emt 0:00:08]} 23. Rxc4 {[%emt 0:00:02]} Rd6 {[%emt 0:00:14]} 24. Ra4 {[%emt 0:00:13]} Ra6 {[%emt 0:00:24]} 25. Rxa6 {[%emt 0:00:09]} bxa6 {[%emt 0:00:04]} 26. Re6 {[%emt 0:00:09]} Kb7 {[%emt 0:00:05]} 27. d5 {[%emt 0:00:03]} Rh7 {[%emt 0:00:26]} 28. Nd4 {[%emt 0:00:36]} g5 {[%emt 0:00:38]} 29. hxg5 {[%emt 0:00:08]} fxg5 {[%emt 0:00:02]} 30. Nb3 {[%emt 0:00:11]} h4 {[%emt 0:00:21]} 31. Nc5+ {[%emt 0:00:04]} Kc7 {[%emt 0:00:17]} 32. Rc6+ {[%emt 0:00:23]} Kd8 {[%emt 0:00:20]} 33. Ne6+ {[%emt 0:00:03]} Ke8 {[%emt 0:00:04]} 34. Rc8+ {[%emt 0:00:01]} 1-0

[Event "European Online Club-ch-F 2021"]
[Site "Online"]
[Date "2021.03.27"]
[Round "8.5"]
[White "Maghsoodloo, Parham"]
[Black "Isik, Alparslan"]
[Result "1-0"]
[ECO "D85"]
[WhiteElo "2676"]
[BlackElo "2321"]
[Annotator "ChessBase"]
[PlyCount "67"]
[EventDate "2021.03.27"]
[EventType "team-tourn"]
[EventCountry "NET"]
[SourceTitle "playchess.com"]
[Source "ChessBase"]
[SourceQuality "1"]
[TimeControl "900+5"]

1. d4 {[%emt 0:00:00]} Nf6 {[%emt 0:00:03]} 2. c4 {[%emt 0:00:02]} g6 {[%emt 0:00:03]} 3. Nc3 {[%emt 0:00:02]} d5 {[%emt 0:00:01]} 4. cxd5 {[%emt 0:00:23]} Nxd5 {[%emt 0:00:03]} 5. Bd2 {[%emt 0:00:02]} Bg7 {[%emt 0:00:07]} 6. e4 {[%emt 0:00:01]} Nxc3 {[%emt 0:00:10]} 7. Bxc3 {[%emt 0:00:02]} O-O {[%emt 0:00:49]} 8. Bc4 {[%emt 0:00:06]} c5 {[%emt 0:00:33]} 9. d5 {[%emt 0:00:01]} Bxc3+ {[%emt 0:00:30]} 10. bxc3 {[%emt 0:00:03]} e6 {[%emt 0:00:02]} 11. dxe6 {[%emt 0:01:07]} Bxe6 {[%emt 0:00:11]} 12. Bxe6 {[%emt 0:00:03]} fxe6 {[%emt 0:00:29]} 13. Qb3 {[%emt 0:00:04]} Qf6 {[%emt 0:00:36]} 14. Nf3 {[%emt 0:00:03]} Nc6 {[%emt 0:00:03]} 15. O-O {[%emt 0:00:02]} b6 {[%emt 0:00:05]} 16. h4 {[%emt 0:00:15]} h6 {[%emt 0:00:10]} 17. Rad1 {[%emt 0:00:26]} Rad8 {[%emt 0:00:04]} 18. Rxd8 {[%emt 0:00:08]} Rxd8 {[%emt 0:00:04]} 19. Qa4 {[%emt 0:00:02]} Na5 {[%emt 0:00:54]} 20. Rd1 {[%emt 0:00:12]} Rxd1+ {[%emt 0:00:27]} 21. Qxd1 {[%emt 0:00:03]} Qxc3 {[%emt 0:00:02]} 22. Qd8+ {[%emt 0:00:02]} Kh7 {[%emt 0:00:02]} 23. Qe7+ {[%emt 0:00:02]} Qg7 {[%emt 0:00:03]} 24. Qxe6 {[%emt 0:00:01]} c4 {[%emt 0:00:13]} 25. e5 {[%emt 0:00:02]} Qc7 {[%emt 0:01:14]} 26. h5 {[%emt 0:00:18]} gxh5 {[%emt 0:00:03]} 27. Qf5+ {[%emt 0:00:03]} Kg7 {[%emt 0:00:22]} 28. Qf6+ {[%emt 0:00:24]} Kh7 {[%emt 0:00:21]} 29. e6 {[%emt 0:00:44]} Qg7 {[%emt 0:00:47]} 30. Qf5+ {[%emt 0:01:28]} Qg6 {[%emt 0:00:05]} 31. Qe5 {[%emt 0:00:02]} c3 {[%emt 0:00:35]} 32. Nh4 {[%emt 0:01:06]} Qg5 {[%emt 0:06:27]} 33. Qxc3 {[%emt 0:01:10]} Qe7 {[%emt 0:00:44]} 34. Nf5 {[%emt 0:00:10]} 1-0

[Event "European Online Club-ch-F 2021"]
[Site "Online"]
[Date "2021.03.27"]
[Round "8.6"]
[White "Apaydin, Fethi"]
[Black "Amin, Bassem"]
[Result "1-0"]
[ECO "C25"]
[WhiteElo "2260"]
[BlackElo "2695"]
[Annotator "ChessBase"]
[PlyCount "115"]
[EventDate "2021.03.27"]
[EventType "team-tourn"]
[EventCountry "NET"]
[SourceTitle "playchess.com"]
[Source "ChessBase"]
[SourceQuality "1"]
[TimeControl "900+5"]

1. e4 {[%emt 0:00:00]} e5 {[%emt 0:00:03]} 2. Nc3 {[%emt 0:00:07]} Nc6 {[%emt 0:00:03]} 3. g3 {[%emt 0:00:31]} f5 {[%emt 0:00:54]} 4. exf5 {[%emt 0:00:20]} Nf6 {[%emt 0:00:01]} 5. d3 {[%emt 0:00:48]} d5 {[%emt 0:00:06]} 6. Bh3 {[%emt 0:00:42]} Bc5 {[%emt 0:00:32]} 7. Nf3 {[%emt 0:00:35]} O-O {[%emt 0:00:25]} 8. O-O {[%emt 0:00:07]} h6 {[%emt 0:00:54]} 9. Nh4 {[%emt 0:02:03]} Nd4 {[%emt 0:00:21]} 10. Ne2 {[%emt 0:00:17]} Nc6 {[%emt 0:01:02]} 11. c3 {[%emt 0:00:26]} Bd6 {[%emt 0:00:56]} 12. d4 {[%emt 0:01:21]} e4 {[%emt 0:00:07]} 13. Ng6 {[%emt 0:00:28]} Rf7 {[%emt 0:00:38]} 14. Nef4 {[%emt 0:00:06]} Ne7 {[%emt 0:00:23]} 15. Ne5 {[%emt 0:00:32]} Rf8 {[%emt 0:01:46]} 16. g4 {[%emt 0:00:07]} c6 {[%emt 0:00:18]} 17. f3 {[%emt 0:01:14]} Qc7 {[%emt 0:00:52]} 18. fxe4 {[%emt 0:00:07]} Nxe4 {[%emt 0:00:16]} 19. Nfd3 {[%emt 0:00:09]} b6 {[%emt 0:00:17]} 20. Bf4 {[%emt 0:00:55]} Ba6 {[%emt 0:00:08]} 21. Re1 {[%emt 0:00:54]} Rae8 {[%emt 0:00:48]} 22. Bg2 {[%emt 0:00:09]} c5 {[%emt 0:00:10]} 23. Nf2 {[%emt 0:00:16]} Nxf2 {[%emt 0:00:54]} 24. Kxf2 {[%emt 0:00:02]} Bb7 {[%emt 0:00:34]} 25. Kg1 {[%emt 0:00:09]} g5 {[%emt 0:01:25]} 26. Bg3 {[%emt 0:00:09]} Kg7 {[%emt 0:00:03]} 27. Qd2 {[%emt 0:00:05]} Ng8 {[%emt 0:00:08]} 28. h4 {[%emt 0:00:58]} gxh4 {[%emt 0:00:17]} 29. Bxh4 {[%emt 0:00:27]} Bxe5 {[%emt 0:00:11]} 30. dxe5 {[%emt 0:00:21]} Rxe5 {[%emt 0:00:01]} 31. Bg3 {[%emt 0:00:07]} Rxe1+ {[%emt 0:00:06]} 32. Qxe1 {[%emt 0:00:01]} Qf7 {[%emt 0:00:14]} 33. Be5+ {[%emt 0:00:08]} Kh7 {[%emt 0:00:19]} 34. Qg3 {[%emt 0:00:24]} Ne7 {[%emt 0:00:35]} 35. Rf1 {[%emt 0:00:25]} Rg8 {[%emt 0:00:04]} 36. Qh4 {[%emt 0:00:29]} Qf8 {[%emt 0:01:08]} 37. Bf6 {[%emt 0:00:28]} Rxg4 {[%emt 0:00:24]} 38. Qxg4 {[%emt 0:00:19]} Qxf6 {[%emt 0:00:02]} 39. Re1 {[%emt 0:00:02]} Nxf5 {[%emt 0:00:20]} 40. Rf1 {[%emt 0:00:15]} Bc8 {[%emt 0:00:04]} 41. Bxd5 {[%emt 0:00:11]} Qg7 {[%emt 0:00:14]} 42. Qxg7+ {[%emt 0:00:20]} Kxg7 {[%emt 0:00:00]} 43. Re1 {[%emt 0:00:07]} Kf6 {[%emt 0:00:17]} 44. Re8 {[%emt 0:00:02]} Ne7 {[%emt 0:00:04]} 45. Bf3 {[%emt 0:00:11]} Be6 {[%emt 0:00:09]} 46. Ra8 {[%emt 0:00:07]} Bxa2 {[%emt 0:00:06]} 47. Rxa7 {[%emt 0:00:02]} Be6 {[%emt 0:00:05]} 48. Ra6 {[%emt 0:00:08]} Nc8 {[%emt 0:00:06]} 49. Bb7 {[%emt 0:00:04]} Nd6 {[%emt 0:00:06]} 50. Rxb6 {[%emt 0:00:10]} Ke5 {[%emt 0:00:04]} 51. b4 {[%emt 0:00:17]} c4 {[%emt 0:00:09]} 52. Ba6 {[%emt 0:00:14]} Ne4 {[%emt 0:00:04]} 53. Rc6 {[%emt 0:00:16]} Bd5 {[%emt 0:00:04]} 54. Rc8 {[%emt 0:00:03]} Nd6 {[%emt 0:00:05]} 55. Rc7 {[%emt 0:00:04]} h5 {[%emt 0:00:03]} 56. Kh2 {[%emt 0:00:03]} Ke4 {[%emt 0:00:07]} 57. b5 {[%emt 0:00:04]} Ne8 {[%emt 0:00:06]} 58. Re7+ {[%emt 0:00:02]} 1-0

[Event "European Online Club-ch-F 2021"]
[Site "Online"]
[Date "2021.03.27"]
[Round "8.7"]
[White "Van Wely, Loek"]
[Black "Ozturk, Efe Hakan"]
[Result "1-0"]
[ECO "E14"]
[WhiteElo "2620"]
[BlackElo "2030"]
[Annotator "ChessBase"]
[PlyCount "139"]
[EventDate "2021.03.27"]
[EventType "team-tourn"]
[EventCountry "NET"]
[SourceTitle "playchess.com"]
[Source "ChessBase"]
[SourceQuality "1"]
[TimeControl "900+5"]

1. d4 {[%emt 0:00:00]} Nf6 {[%emt 0:00:04]} 2. c4 {[%emt 0:00:04]} e6 {[%emt 0:00:01]} 3. Nf3 {[%emt 0:00:03]} Bb4+ {[%emt 0:00:02]} 4. Nbd2 {[%emt 0:00:03]} b6 {[%emt 0:00:10]} 5. a3 {[%emt 0:00:03]} Bxd2+ {[%emt 0:00:12]} 6. Qxd2 {[%emt 0:00:02]} Bb7 {[%emt 0:00:07]} 7. e3 {[%emt 0:00:02]} O-O {[%emt 0:00:25]} 8. Be2 {[%emt 0:00:02]} d6 {[%emt 0:00:07]} 9. O-O {[%emt 0:00:03]} Nbd7 {[%emt 0:00:03]} 10. b4 {[%emt 0:00:01]} Qe7 {[%emt 0:01:27]} 11. Bb2 {[%emt 0:00:06]} c5 {[%emt 0:00:46]} 12. Rfd1 {[%emt 0:00:24]} Rfd8 {[%emt 0:00:41]} 13. dxc5 {[%emt 0:02:07]} dxc5 {[%emt 0:00:16]} 14. Qc3 {[%emt 0:00:03]} Nf8 {[%emt 0:01:56]} 15. Nd2 {[%emt 0:00:48]} Ng6 {[%emt 0:01:14]} 16. f3 {[%emt 0:01:07]} Ne8 {[%emt 0:01:44]} 17. Nf1 {[%emt 0:01:26]} f6 {[%emt 0:01:55]} 18. Ng3 {[%emt 0:00:23]} Rac8 {[%emt 0:00:19]} 19. b5 {[%emt 0:02:21]} Nd6 {[%emt 0:01:54]} 20. a4 {[%emt 0:00:14]} a5 {[%emt 0:00:15]} 21. bxa6 {[%emt 0:00:47]} Bxa6 {[%emt 0:00:03]} 22. a5 {[%emt 0:00:13]} Qb7 {[%emt 0:01:12]} 23. axb6 {[%emt 0:00:58]} Qxb6 {[%emt 0:00:03]} 24. Qc2 {[%emt 0:00:31]} Ne7 {[%emt 0:01:16]} 25. Rdb1 {[%emt 0:02:04]} Qc6 {[%emt 0:00:10]} 26. Qa4 {[%emt 0:00:12]} Ra8 {[%emt 0:00:21]} 27. Qc2 {[%emt 0:00:31]} Bb7 {[%emt 0:00:14]} 28. Kf2 {[%emt 0:00:14]} Rxa1 {[%emt 0:00:06]} 29. Rxa1 {[%emt 0:00:12]} Ra8 {[%emt 0:00:01]} 30. Rd1 {[%emt 0:00:06]} Rd8 {[%emt 0:00:18]} 31. Ba3 {[%emt 0:00:16]} Nf7 {[%emt 0:00:06]} 32. Rxd8+ {[%emt 0:00:31]} Nxd8 {[%emt 0:00:01]} 33. Ne4 {[%emt 0:00:02]} Ng6 {[%emt 0:00:10]} 34. Nxc5 {[%emt 0:00:10]} Ba8 {[%emt 0:00:05]} 35. Qa4 {[%emt 0:00:14]} Qxa4 {[%emt 0:00:04]} 36. Nxa4 {[%emt 0:00:01]} Ne5 {[%emt 0:00:02]} 37. f4 {[%emt 0:00:41]} Nd7 {[%emt 0:00:03]} 38. Nc5 {[%emt 0:00:11]} Nxc5 {[%emt 0:00:07]} 39. Bxc5 {[%emt 0:00:00]} Kf7 {[%emt 0:00:02]} 40. Bb6 {[%emt 0:00:09]} Nc6 {[%emt 0:00:09]} 41. Bf3 {[%emt 0:00:04]} Ke7 {[%emt 0:00:03]} 42. Bc5+ {[%emt 0:00:18]} Kd7 {[%emt 0:00:04]} 43. g4 {[%emt 0:00:05]} Bb7 {[%emt 0:00:05]} 44. h4 {[%emt 0:00:23]} Ba6 {[%emt 0:00:04]} 45. Bf8 {[%emt 0:00:04]} Bxc4 {[%emt 0:00:08]} 46. Bxg7 {[%emt 0:00:03]} f5 {[%emt 0:00:04]} 47. g5 {[%emt 0:00:02]} Ne7 {[%emt 0:00:05]} 48. h5 {[%emt 0:00:04]} Ke8 {[%emt 0:00:04]} 49. Bf6 {[%emt 0:00:08]} Kf7 {[%emt 0:00:07]} 50. Bxe7 {[%emt 0:00:12]} Kxe7 {[%emt 0:00:01]} 51. Ke1 {[%emt 0:00:02]} e5 {[%emt 0:00:07]} 52. h6 {[%emt 0:00:08]} exf4 {[%emt 0:00:04]} 53. exf4 {[%emt 0:00:06]} Bf7 {[%emt 0:00:03]} 54. Kd2 {[%emt 0:00:03]} Kd6 {[%emt 0:00:02]} 55. Kc3 {[%emt 0:00:04]} Kc5 {[%emt 0:00:01]} 56. Bd1 {[%emt 0:00:03]} Be8 {[%emt 0:00:07]} 57. Bb3 {[%emt 0:00:05]} Bh5 {[%emt 0:00:05]} 58. Be6 {[%emt 0:00:04]} Bg6 {[%emt 0:00:02]} 59. Bg8 {[%emt 0:00:02]} Kd6 {[%emt 0:00:03]} 60. Kd4 {[%emt 0:00:01]} Ke7 {[%emt 0:00:03]} 61. Ke5 {[%emt 0:00:02]} Kf8 {[%emt 0:00:01]} 62. Be6 {[%emt 0:00:03]} Ke7 {[%emt 0:00:14]} 63. Bxf5 {[%emt 0:00:02]} Bxf5 {[%emt 0:00:03]} 64. Kxf5 {[%emt 0:00:02]} Kf7 {[%emt 0:00:01]} 65. g6+ {[%emt 0:00:05]} Kg8 {[%emt 0:00:18]} 66. Kf6 {[%emt 0:00:08]} Kh8 {[%emt 0:00:05]} 67. f5 {[%emt 0:00:04]} Kg8 {[%emt 0:00:04]} 68. gxh7+ {[%emt 0:00:03]} Kxh7 {[%emt 0:00:02]} 69. Ke7 {[%emt 0:00:02]} Kxh6 {[%emt 0:00:02]} 70. f6 {[%emt 0:00:02]} 1-0

[Event "European Online Club-ch-F 2021"]
[Site "Online"]
[Date "2021.03.27"]
[Round "8.8"]
[White "Camlar, Arda"]
[Black "Hamdouchi, Hicham"]
[Result "0-1"]
[ECO "B25"]
[WhiteElo "1934"]
[BlackElo "2561"]
[Annotator "ChessBase"]
[PlyCount "76"]
[EventDate "2021.03.27"]
[EventType "team-tourn"]
[EventCountry "NET"]
[SourceTitle "playchess.com"]
[Source "ChessBase"]
[SourceQuality "1"]
[TimeControl "900+5"]

1. e4 {[%emt 0:00:00]} c5 {[%emt 0:00:03]} 2. Nc3 {[%emt 0:00:04]} Nc6 {[%emt 0:00:06]} 3. g3 {[%emt 0:00:02]} g6 {[%emt 0:00:03]} 4. Bg2 {[%emt 0:00:02]} Bg7 {[%emt 0:00:01]} 5. d3 {[%emt 0:00:01]} d6 {[%emt 0:00:02]} 6. f4 {[%emt 0:00:03]} Nh6 {[%emt 0:00:03]} 7. Nf3 {[%emt 0:00:14]} O-O {[%emt 0:00:04]} 8. O-O {[%emt 0:00:03]} Bd7 {[%emt 0:00:07]} 9. h3 {[%emt 0:00:19]} f5 {[%emt 0:00:01]} 10. Qe2 {[%emt 0:00:42]} Nd4 {[%emt 0:00:36]} 11. Nxd4 {[%emt 0:01:16]} cxd4 {[%emt 0:00:04]} 12. Nd1 {[%emt 0:00:07]} Rc8 {[%emt 0:01:06]} 13. c4 {[%emt 0:00:57]} dxc3 {[%emt 0:00:11]} 14. Nxc3 {[%emt 0:00:03]} e6 {[%emt 0:01:27]} 15. Kh2 {[%emt 0:00:26]} b5 {[%emt 0:00:09]} 16. Nd1 {[%emt 0:01:23]} Qb6 {[%emt 0:01:25]} 17. g4 {[%emt 0:00:31]} fxg4 {[%emt 0:01:29]} 18. hxg4 {[%emt 0:00:05]} Qd8 {[%emt 0:00:06]} 19. Ne3 {[%emt 0:01:02]} Rxf4 {[%emt 0:01:23]} 20. Rxf4 {[%emt 0:00:16]} Be5 {[%emt 0:00:02]} 21. Nc4 {[%emt 0:01:27]} bxc4 {[%emt 0:00:04]} 22. d4 {[%emt 0:00:03]} Bxd4 {[%emt 0:00:08]} 23. Rf1 {[%emt 0:00:34]} Qh4+ {[%emt 0:01:15]} 24. Bh3 {[%emt 0:00:10]} c3 {[%emt 0:00:38]} 25. Bxh6 {[%emt 0:01:01]} Qxh6 {[%emt 0:00:18]} 26. g5 {[%emt 0:01:45]} Qh4 {[%emt 0:02:01]} 27. Qf3 {[%emt 0:00:37]} cxb2 {[%emt 0:00:06]} 28. Rad1 {[%emt 0:00:12]} Bg7 {[%emt 0:00:57]} 29. Kh1 {[%emt 0:01:03]} Rf8 {[%emt 0:00:14]} 30. Qd3 {[%emt 0:00:12]} Be5 {[%emt 0:01:59]} 31. Rxf8+ {[%emt 0:00:16]} Kxf8 {[%emt 0:00:02]} 32. Rf1+ {[%emt 0:00:17]} Ke7 {[%emt 0:00:03]} 33. Qf3 {[%emt 0:00:24]} Qf4 {[%emt 0:00:13]} 34. Qxf4 {[%emt 0:00:12]} Bxf4 {[%emt 0:00:02]} 35. Rb1 {[%emt 0:00:03]} Bc1 {[%emt 0:00:01]} 36. Bf1 {[%emt 0:00:02]} Bc6 {[%emt 0:00:11]} 37. Bd3 {[%emt 0:00:03]} d5 {[%emt 0:00:01]} 38. exd5 {[%emt 0:00:03]} Bxd5+ {[%emt 0:00:02]} 0-1